[Event "Esbjerg Efterår 2024 - Esbjergmesterskabet"]
[Site "Esbjerg, Denmark"]
[Date "2024.10.19"]
[Round "4.5"]
[White "Desevac, Damir"]
[Black "Guindy, Esmat Susanne"]
[Result "0-1"]
[TimeControl "1.-3. 20 min + 5 sek, 4.-7. 90 min + 30 sek + 15 min efter 40 træk"]
[WhiteElo "1836"]
[BlackElo "2025"]

1. Nf3 {[%clk 01:30:56]} {[%emt 00:00:03]} d5 {[%clk 01:30:28]} {[%emt
00:00:33]} 2. d4 {[%clk 01:30:39]} {[%emt 00:00:47]} Bf5 {[%clk 01:30:33]}
{[%emt 00:00:25]} 3. c4 {[%clk 01:30:23]} {[%emt 00:00:46]} e6 {[%clk
01:30:36]} {[%emt 00:00:27]} 4. Nc3 {[%clk 01:30:23]} {[%emt 00:00:31]} Nf6
{[%clk 01:28:48]} {[%emt 00:02:16]} 5. Bg5 {[%clk 01:27:42]} {[%emt 00:03:10]}
c6 {[%clk 01:22:08]} {[%emt 00:07:11]} 6. Qb3 {[%clk 01:24:57]} {[%emt
00:03:15]} Qb6 {[%clk 01:22:31]} {[%emt 00:00:08]} 7. c5 {[%clk 01:23:42]}
{[%emt 00:01:45]} Qxb3 {[%clk 01:22:55]} {[%emt 00:00:07]} 8. axb3 {[%clk
01:23:55]} {[%emt 00:00:16]} Be7 {[%clk 01:17:08]} {[%emt 00:06:16]} 9. e3
{[%clk 01:20:00]} {[%emt 00:04:25]} O-O {[%clk 01:16:53]} {[%emt 00:00:45]} 10.
Kd2 {[%clk 01:17:27]} {[%emt 00:03:02]} Nbd7 {[%clk 01:15:24]} {[%emt
00:02:00]} 11. Bd3 {[%clk 01:14:25]} {[%emt 00:03:32]} Rfe8 {[%clk 01:13:33]}
{[%emt 00:02:22]} 12. Bxf5 {[%clk 01:08:34]} {[%emt 00:06:21]} exf5 {[%clk
01:13:54]} {[%emt 00:00:08]} 13. Kd3 {[%clk 01:02:09]} {[%emt 00:06:55]} a6
{[%clk 01:08:05]} {[%emt 00:06:20]} 14. b4 {[%clk 01:00:57]} {[%emt 00:01:41]}
Ne4 {[%clk 01:04:02]} {[%emt 00:04:32]} 15. Bxe7 {[%clk 01:01:03]} {[%emt
00:00:25]} Rxe7 {[%clk 01:04:01]} {[%emt 00:00:30]} 16. Rhf1 {[%clk 01:00:07]}
{[%emt 00:01:26]} Rae8 {[%clk 01:03:27]} {[%emt 00:01:05]} 17. Nd2 {[%clk
00:56:45]} {[%emt 00:03:51]} Ng5 {[%clk 00:59:42]} {[%emt 00:04:14]} 18. h4
{[%clk 00:51:57]} {[%emt 00:05:19]} Ne6 {[%clk 00:59:48]} {[%emt 00:00:25]} 19.
g3 {[%clk 00:51:59]} {[%emt 00:00:27]} Nf6 {[%clk 00:58:58]} {[%emt 00:01:20]}
20. Rae1 {[%clk 00:50:03]} {[%emt 00:02:25]} Ne4 {[%clk 00:56:17]} {[%emt
00:03:13]} 21. Ncxe4 {[%clk 00:48:11]} {[%emt 00:02:22]} fxe4+ {[%clk
00:56:27]} {[%emt 00:00:19]} 22. Kc3 {[%clk 00:47:01]} {[%emt 00:01:40]} Nf8
{[%clk 00:56:18]} {[%emt 00:00:39]} 23. Kb3 {[%clk 00:46:35]} {[%emt 00:00:57]}
Nd7 {[%clk 00:56:16]} {[%emt 00:00:32]} 24. Ka4 {[%clk 00:46:04]} {[%emt
00:01:01]} h5 {[%clk 00:52:38]} {[%emt 00:04:07]} 25. Rg1 {[%clk 00:39:47]}
{[%emt 00:06:47]} Re6 {[%clk 00:51:08]} {[%emt 00:02:01]} 26. Nb3 {[%clk
00:38:49]} {[%emt 00:01:27]} R8e7 {[%clk 00:51:04]} {[%emt 00:00:34]} 27. Na5
{[%clk 00:37:21]} {[%emt 00:01:57]} Nf6 {[%clk 00:50:55]} {[%emt 00:00:38]} 28.
Re2 {[%clk 00:36:56]} {[%emt 00:00:56]} Kf8 {[%clk 00:51:02]} {[%emt 00:00:23]}
29. Nb3 {[%clk 00:36:36]} {[%emt 00:00:51]} Ke8 {[%clk 00:48:51]} {[%emt
00:02:41]} 30. Ka5 {[%clk 00:36:46]} {[%emt 00:00:20]} Kd8 {[%clk 00:47:57]}
{[%emt 00:01:23]} 31. Kb6 {[%clk 00:35:40]} {[%emt 00:01:35]} Kc8 {[%clk
00:48:01]} {[%emt 00:00:27]} 32. Rc2 {[%clk 00:33:37]} {[%emt 00:02:33]} Kb8
{[%clk 00:44:46]} {[%emt 00:03:46]} 33. Nc1 {[%clk 00:31:35]} {[%emt 00:02:31]}
Ng4 {[%clk 00:44:07]} {[%emt 00:01:08]} 34. Ne2 {[%clk 00:30:23]} {[%emt
00:01:43]} Rf6 {[%clk 00:40:28]} {[%emt 00:04:10]} 35. Nf4 {[%clk 00:30:29]}
{[%emt 00:00:24]} Rf5 {[%clk 00:40:01]} {[%emt 00:00:56]} 36. Rg2 {[%clk
00:29:17]} {[%emt 00:01:42]} Nf6 {[%clk 00:39:49]} {[%emt 00:00:42]} 37. Re2
{[%clk 00:28:03]} {[%emt 00:01:44]} Re8 {[%clk 00:38:26]} {[%emt 00:01:53]} 38.
Nh3 {[%clk 00:27:16]} {[%emt 00:01:17]} g6 {[%clk 00:37:04]} {[%emt 00:01:51]}
39. Ng5 {[%clk 00:27:17]} {[%emt 00:00:30]} Nd7+ {[%clk 00:36:28]} {[%emt
00:01:06]} 40. Ka5 {[%clk 00:27:14]} {[%emt 00:00:34]} Ka7 {[%clk 00:35:34]}
{[%emt 00:01:25]} 41. Ka4 {[%clk 00:26:42]} {[%emt 00:01:02]} Re7 {[%clk
00:33:20]} {[%emt 00:02:43]} 42. Kb3 {[%clk 00:26:32]} {[%emt 00:00:41]} Nf6
{[%clk 00:32:49]} {[%emt 00:01:00]} 43. Kc3 {[%clk 00:26:27]} {[%emt 00:00:36]}
Ng4 {[%clk 00:32:58]} {[%emt 00:00:21]} 44. Nh3 {[%clk 00:26:10]} {[%emt
00:00:47]} Kb8 {[%clk 00:29:45]} {[%emt 00:03:43]} 45. Nf4 {[%clk 00:25:00]}
{[%emt 00:01:40]} Kc7 {[%clk 00:29:45]} {[%emt 00:00:30]} 46. Rc2 {[%clk
00:24:53]} {[%emt 00:00:37]} Re8 {[%clk 00:29:52]} {[%emt 00:00:23]} 47. Re2
{[%clk 00:24:53]} {[%emt 00:00:31]} Ra8 {[%clk 00:28:56]} {[%emt 00:01:27]} 48.
Re1 {[%clk 00:24:14]} {[%emt 00:01:08]} Kd7 {[%clk 00:27:48]} {[%emt 00:01:38]}
49. Ra1 {[%clk 00:23:55]} {[%emt 00:00:49]} Rg8 {[%clk 00:26:15]} {[%emt
00:02:03]} 50. b3 {[%emt 00:02:41]} f6 {[%clk 00:24:15]} {[%emt 00:00:25]} 51.
Rag1 {[%clk 00:23:43]} {[%emt 00:00:37]} Ke7 {[%clk 00:24:19]} {[%emt
00:00:26]} 52. Kd2 {[%clk 00:23:18]} {[%emt 00:00:55]} Kf7 {[%clk 00:24:22]}
{[%emt 00:00:26]} 53. Ke2 {[%clk 00:23:04]} {[%emt 00:00:45]} Re8 {[%clk
00:24:00]} {[%emt 00:00:51]} 54. Rf1 {[%clk 00:22:03]} {[%emt 00:01:32]} Kg7
{[%clk 00:22:20]} {[%emt 00:02:09]} 55. Rfg1 {[%clk 00:21:30]} {[%emt
00:01:05]} Rh8 {[%clk 00:21:02]} {[%emt 00:01:47]} 56. Rh1 {[%clk 00:20:55]}
{[%emt 00:01:05]} Kf7 {[%clk 00:20:34]} {[%emt 00:00:58]} 57. Ke1 {[%clk
00:20:56]} {[%emt 00:00:29]} Rh7 {[%clk 00:12:36]} {[%emt 00:08:27]} 58. Ke2
{[%clk 00:21:14]} {[%emt 00:00:13]} g5 {[%clk 00:12:14]} {[%emt 00:00:52]} 59.
Nh3 {[%clk 00:18:43]} {[%emt 00:03:00]} Kg6 {[%clk 00:12:06]} {[%emt 00:00:38]}
60. Rhg1 {[%clk 00:18:48]} {[%emt 00:00:25]} Re7 {[%clk 00:10:35]} {[%emt
00:02:00]} 61. Ke1 {[%clk 00:16:59]} {[%emt 00:02:20]} Nh6 {[%clk 00:04:19]}
{[%emt 00:06:46]} 62. Kd2 {[%clk 00:16:28]} {[%emt 00:01:02]} Re8 {[%clk
00:03:59]} {[%emt 00:00:49]} 63. Kc3 {[%clk 00:16:03]} {[%emt 00:00:56]} Ng4
{[%clk 00:03:26]} {[%emt 00:01:01]} 64. Rh1 {[%clk 00:15:32]} {[%emt 00:01:02]}
Ra8 {[%clk 00:03:07]} {[%emt 00:00:50]} 65. Kd2 {[%clk 00:15:14]} {[%emt
00:00:48]} Kh6 {[%clk 00:01:58]} {[%emt 00:01:39]} 66. Ke2 {[%clk 00:15:10]}
{[%emt 00:00:34]} Rb8 {[%clk 00:01:40]} {[%emt 00:00:48]} 67. Kd2 {[%clk
00:15:08]} {[%emt 00:00:33]} Rf3 {[%clk 00:01:34]} {[%emt 00:00:35]} 68. Kc3
{[%clk 00:14:03]} {[%emt 00:01:36]} gxh4 {[%clk 00:11:26]} {[%emt 00:05:38]} 69.
gxh4 {[%clk 00:23:47]} {[%emt 00:05:16]} b6 {[%clk 00:10:45]} {[%emt 00:00:42]}
70. Kc2 {[%emt 00:03:55]} bxc5 {[%emt 00:00:22]} 71. bxc5 {[%emt 00:00:25]}
Rxe3 {[%emt 00:04:01]} 72. Rxg4 {[%emt 00:00:40]} Re2+ {[%emt 00:00:24]} 73.
Kd1 {[%emt 00:00:21]} Ra2 {[%emt 00:00:11]} 74. Rgg1 {[%emt 00:00:54]} Rxb3
{[%emt 00:00:17]} 75. Kc1 {[%emt 00:00:22]} Rxh3 {[%emt 00:00:31]} 76. Rxh3
{[%emt 00:00:46]} Ra1+ {[%emt 00:00:05]} 77. Kd2 {[%emt 00:00:52]} Rxg1 {[%emt
00:00:09]} 78. Ra3 {[%emt 00:00:16]} Rg6 {[%emt 00:03:59]} 79. Rxa6 {[%emt
00:00:49]} f5 {[%emt 00:00:04]} 80. Ke3 {[%emt 00:00:32]} Re6 {[%emt 00:00:18]}
81. Kf4 {[%emt 00:01:03]} Kg6 {[%emt 00:00:18]} 82. Ra1 {[%emt 00:01:40]} Kf6
{[%emt 00:00:32]} 83. Rg1 {[%emt 00:00:57]} e3 {[%emt 00:00:44]} 84. fxe3
{[%emt 00:00:53]} Re4+ {[%emt 00:00:06]} 85. Kf3 {[%emt 00:00:48]} Rxh4 {[%emt
00:00:08]} 86. Rg8 {[%emt 00:00:33]} Re4 {[%emt 00:01:17]} 87. Rc8 {[%emt
00:01:10]} Re6 {[%emt 00:00:07]} 88. Kf4 {[%emt 00:00:34]} Kg6 {[%emt
00:00:56]} 89. Rg8+ {[%emt 00:01:04]} Kf7 {[%emt 00:01:13]} 90. Rg5 {[%emt
00:01:06]} Re4+ {[%emt 00:00:15]} 91. Kf3 {[%emt 00:00:25]} f4 {[%emt
00:01:00]} 92. Rf5+ {[%emt 00:02:08]} Ke6 {[%emt 00:00:33]} 93. Rxf4 {[%emt
00:05:00]} Rxf4+ {[%emt 00:00:24]} 94. Kxf4 {[%emt 00:00:10]} Kf6 {[%emt
00:00:48]} 95. e4 {[%emt 00:00:18]} dxe4 {[%emt 00:00:09]} 96. Kxe4 {[%emt
00:00:39]} Ke6 {[%emt 00:00:07]} 97. d5+ {[%emt 00:00:56]} cxd5+ {[%emt
00:00:11]} 98. Kd4 {[%emt 00:00:14]} h4 {[%emt 00:00:30]} 99. c6 {[%emt
00:00:02]} Kd6 {[%emt 00:00:09]} 100. c7 {[%emt 00:00:05]} Kxc7 {[%emt
00:00:04]} 0-1

[Event "Esbjerg Efterår 2024 - Esbjergmesterskabet"]
[Site "Esbjerg, Denmark"]
[Date "2024.10.19"]
[Round "4.7"]
[White "Vinther, Christoffer"]
[Black "Wyff, Poul"]
[Result "1/2-1/2"]
[TimeControl "1.-3. 20 min + 5 sek, 4.-7. 90 min + 30 sek + 15 min efter 40 træk"]
[WhiteElo "1800"]
[BlackElo "1786"]

1. e4 {[%clk 01:30:55]} {[%emt 00:00:04]} c6 {[%clk 01:30:54]} {[%emt
00:00:07]} 2. d4 {[%clk 01:31:17]} {[%emt 00:00:08]} d5 {[%clk 01:31:18]}
{[%emt 00:00:06]} 3. f3 {[%clk 01:31:33]} {[%emt 00:00:14]} e6 {[%clk
01:29:37]} {[%emt 00:02:12]} 4. Nc3 {[%clk 01:31:32]} {[%emt 00:00:31]} Ne7
{[%clk 01:26:38]} {[%emt 00:03:29]} 5. Be3 {[%clk 01:30:23]} {[%emt 00:01:38]}
Ng6 {[%clk 01:22:48]} {[%emt 00:04:20]} 6. Qd2 {[%clk 01:30:10]} {[%emt
00:00:43]} b6 {[%clk 01:18:49]} {[%emt 00:04:29]} 7. O-O-O {[%clk 01:28:36]}
{[%emt 00:02:03]} Ba6 {[%clk 01:18:45]} {[%emt 00:00:35]} 8. Nge2 {[%clk
01:23:45]} {[%emt 00:05:21]} Be7 {[%clk 01:11:21]} {[%emt 00:07:54]} 9. g3
{[%clk 01:19:40]} {[%emt 00:04:35]} O-O {[%clk 01:08:10]} {[%emt 00:03:41]} 10.
h4 {[%clk 01:19:34]} {[%emt 00:00:35]} h5 {[%clk 01:06:09]} {[%emt 00:02:31]}
11. Bg2 {[%clk 01:12:42]} {[%emt 00:07:22]} b5 {[%clk 00:47:36]} {[%emt
00:19:03]} 12. Bg5 {[%clk 01:00:01]} {[%emt 00:13:11]} b4 {[%clk 00:42:31]}
{[%emt 00:05:36]} 13. Na4 {[%clk 00:55:34]} {[%emt 00:04:57]} Bxg5 {[%clk
00:39:19]} {[%emt 00:03:43]} 14. hxg5 {[%clk 00:55:48]} {[%emt 00:00:16]} Bxe2
{[%clk 00:39:10]} {[%emt 00:00:38]} 15. Qxe2 {[%clk 00:56:03]} {[%emt
00:00:15]} Qxg5+ {[%clk 00:37:09]} {[%emt 00:02:31]} 16. f4 {[%clk 00:55:28]}
{[%emt 00:01:05]} Qxg3 {[%clk 00:28:41]} {[%emt 00:08:56]} 17. Qxh5 {[%clk
00:53:06]} {[%emt 00:02:54]} Qxf4+ {[%clk 00:28:50]} {[%emt 00:00:21]} 18. Kb1
{[%clk 00:53:26]} {[%emt 00:00:10]} Qh6 {[%clk 00:28:28]} {[%emt 00:00:53]} 19.
Qe2 {[%clk 00:53:05]} {[%emt 00:00:51]} Qg5 {[%clk 00:21:21]} {[%emt 00:07:37]}
20. Rdg1 {[%clk 00:45:36]} {[%emt 00:07:59]} Nd7 {[%clk 00:14:08]} {[%emt
00:07:43]} 21. Bf3 {[%clk 00:43:56]} {[%emt 00:02:10]} Qe7 {[%clk 00:09:37]}
{[%emt 00:05:01]} 22. Qh2 {[%clk 00:42:31]} {[%emt 00:01:54]} Qh4 {[%clk
00:06:54]} {[%emt 00:03:13]} 23. Qxh4 {[%clk 00:42:48]} {[%emt 00:00:14]} Nxh4
{[%clk 00:07:18]} {[%emt 00:00:07]} 24. Rxh4 {[%clk 00:43:12]} {[%emt
00:00:06]} g6 {[%clk 00:05:42]} {[%emt 00:02:06]} 25. Rgh1 {[%clk 00:43:04]}
{[%emt 00:00:38]} Kg7 {[%clk 00:05:29]} {[%emt 00:00:43]} 26. Rh7+ {[%clk
00:38:53]} {[%emt 00:04:41]} Kf6 {[%clk 00:05:39]} {[%emt 00:00:20]} 27. R1h6
{[%clk 00:38:22]} {[%emt 00:01:00]} Kg5 {[%clk 00:05:14]} {[%emt 00:00:55]} 28.
e5 {[%clk 00:36:54]} {[%emt 00:01:59]} Rac8 {[%clk 00:05:04]} {[%emt 00:00:40]}
29. Rh1 {[%clk 00:36:24]} {[%emt 00:00:59]} Kf4 {[%clk 00:03:47]} {[%emt
00:01:47]} 30. R1h3 {[%clk 00:31:19]} {[%emt 00:05:34]} c5 {[%clk 00:02:09]}
{[%emt 00:02:09]} 31. dxc5 {[%clk 00:26:17]} {[%emt 00:05:32]} Kxe5 {[%clk
00:02:01]} {[%emt 00:00:39]} 32. R3h4 {[%clk 00:25:30]} {[%emt 00:01:17]} a5
{[%clk 00:01:11]} {[%emt 00:01:20]} 33. c3 {[%clk 00:21:26]} {[%emt 00:04:34]}
bxc3 {[%clk 00:01:04]} {[%emt 00:00:37]} 34. Nxc3 {[%clk 00:21:40]} {[%emt
00:00:15]} Rxc5 {[%clk 00:01:15]} {[%emt 00:00:19]} 35. Na4 {[%clk 00:12:04]}
{[%emt 00:10:07]} Rc7 {[%clk 00:01:25]} {[%emt 00:00:19]} 36. Rh1 {[%clk
00:11:27]} {[%emt 00:01:07]} Rc4 {[%clk 00:00:53]} {[%emt 00:01:03]} 37. b3
{[%clk 00:10:20]} {[%emt 00:01:36]} Rf4 {[%clk 00:00:59]} {[%emt 00:00:24]} 38.
R7h3 {[%clk 00:08:41]} {[%emt 00:02:09]} Rc8 {[%clk 00:01:08]} {[%emt
00:00:21]} 39. Nb2 {[%clk 00:05:28]} {[%emt 00:03:44]} Rd4 {[%clk 00:01:04]}
{[%emt 00:00:34]} 40. Re1+ {[%clk 00:03:09]} {[%emt 00:02:48]} Kd6 {[%clk
00:00:52]} {[%emt 00:00:42]} 41. Bd1 {[%clk 00:01:57]} {[%emt 00:01:42]} Ne5
{[%clk 00:09:29]} {[%emt 00:06:54]} 42. Rh7 {[%clk 00:08:59]} {[%emt 00:07:57]}
f6 {[%clk 00:08:17]} {[%emt 00:01:13]} 43. Ra7 {[%clk 00:07:39]} {[%emt
00:01:21]} Nc6 {[%clk 00:06:42]} {[%emt 00:01:35]} 44. Rg7 {[%clk 00:06:39]}
{[%emt 00:00:59]} Ne5 {[%clk 00:05:37]} {[%emt 00:01:05]} 45. Ra7 {[%clk
00:02:54]} {[%emt 00:03:44]} Nc6 {[%clk 00:04:34]} {[%emt 00:01:04]} 46. Rg7
{[%clk 00:05:23]} {[%emt 00:03:54]} Ne5 {[%clk 00:05:34]} {[%emt 00:02:31]}
1/2-1/2

[Event "Esbjerg Efterår 2024 - Esbjergmesterskabet"]
[Site "Esbjerg, Denmark"]
[Date "2024.10.19"]
[Round "4.8"]
[White "Iversen, Tobias"]
[Black "Hansen, Joshua Kehlet"]
[Result "1-0"]
[TimeControl "1.-3. 20 min + 5 sek, 4.-7. 90 min + 30 sek + 15 min efter 40 træk"]
[WhiteElo "1936"]
[BlackElo "1819"]

1. e4 {[%clk 01:30:46]} {[%emt 00:00:12]} e6 {[%clk 01:23:17]} {[%emt
00:07:43]} 2. Nf3 {[%clk 01:31:03]} {[%emt 00:00:14]} d5 {[%clk 01:23:10]}
{[%emt 00:00:36]} 3. Nc3 {[%clk 01:31:13]} {[%emt 00:00:21]} Nf6 {[%clk
01:22:53]} {[%emt 00:00:47]} 4. e5 {[%clk 01:31:32]} {[%emt 00:00:11]} Nfd7
{[%clk 01:23:17]} {[%emt 00:00:07]} 5. d4 {[%emt 00:00:30]} c5 {[%clk
01:23:41]} 6. dxc5 {[%clk 01:29:38]} {[%emt 00:02:28]} Nc6 {[%clk 01:22:00]}
{[%emt 00:02:12]} 7. Bf4 {[%clk 01:29:03]} {[%emt 00:01:04]} Bxc5 {[%clk
01:21:50]} {[%emt 00:00:40]} 8. Bd3 {[%clk 01:27:39]} {[%emt 00:01:55]} Bb4
{[%clk 01:19:48]} {[%emt 00:02:32]} 9. O-O {[%clk 01:24:36]} {[%emt 00:03:33]}
Bxc3 {[%clk 01:19:16]} {[%emt 00:01:02]} 10. bxc3 {[%clk 01:24:52]} {[%emt
00:00:14]} Qc7 {[%clk 01:16:09]} {[%emt 00:03:37]} 11. Qe2 {[%clk 01:11:00]}
{[%emt 00:14:22]} Na5 {[%clk 01:11:42]} {[%emt 00:04:57]} 12. Nd4 {[%clk
00:55:48]} {[%emt 00:15:42]} a6 {[%clk 01:10:37]} {[%emt 00:01:37]} 13. Qg4
{[%clk 00:53:31]} {[%emt 00:02:46]} g6 {[%clk 01:09:58]} {[%emt 00:01:08]} 14.
Nxe6 {[%clk 00:50:14]} {[%emt 00:03:46]} fxe6 {[%clk 01:08:25]} {[%emt
00:02:04]} 15. Qxe6+ {[%clk 00:50:34]} {[%emt 00:00:10]} Kf8 {[%clk 01:08:25]}
{[%emt 00:00:30]} 16. Bh6# {[%clk 00:50:57]} {[%emt 00:00:07]} 1-0